[Event "EYTCC Open U18 2018"]
[Site "Bad Blankeburg"]
[Date "2018.07.12"]
[Round "1"]
[White "Amon, Nejc"]
[Black "Teclaf, Pawel"]
[Result "1/2-1/2"]
[ECO "B11"]
[WhiteElo "2295"]
[BlackElo "2399"]
[Annotator "NA"]
[PlyCount "85"]
[EventDate "2018.07.12"]
[EventType "swiss"]
[EventCountry "GER"]
[SourceTitle "playchess.com"]
[Source "ChessBase"]
[SourceQuality "1"]
[TimeControl "40/5400+30:1800+30"]

1. e4 {[%emt 0:00:00]} c6 {[%emt 0:00:00]} 2. Nc3 {[%emt 0:00:06]} d5 {[%emt 0:00:00]} 3. Nf3 {[%emt 0:00:15]} Bg4 {[%emt 0:00:00]} 4. h3 {[%emt 0:00:09]} Bh5 {[%emt 0:01:48]} 5. exd5 {[%emt 0:07:47]} cxd5 {[%emt 0:00:31]} 6. g4 {[%emt 0:02:32]} Bg6 {[%emt 0:00:05]} 7. Ne5 {[%emt 0:00:09]} Nc6 {[%emt 0:00:06]} 8. Bb5 {[%emt 0:00:14]} Rc8 {[%emt 0:00:03]} 9. h4 {[%emt 0:10:35]} f6 {[%emt 0:02:59]} 10. Nxg6 {[%emt 0:01:49]} hxg6 {[%emt 0:00:01]} 11. d4 {[%emt 0:08:57]} e6 {[%emt 0:01:47]} 12. Be3 {[%emt 0:02:57]} Bb4 {[%emt 0:11:55]} 13. Qd3 {[%emt 0:16:40]} Nge7 {[%emt 0:01:10]} 14. Bd2 {[%emt 0:05:16]} Qa5 {[%emt 0:16:07]} 15. a3 {[%emt 0:08:59]} a6 {[%emt 0:02:01]} 16. Bxc6+ {[%emt 0:00:24]} Rxc6 {[%emt 0:01:03]} 17. Ne2 {[%emt 0:08:21]} Bxd2+ {[%emt 0:02:14]} 18. Qxd2 {[%emt 0:00:10]} Qxd2+ {[%emt 0:03:53]} 19. Kxd2 {[%emt 0:00:07]} Kf7 {[%emt 0:01:07]} 20. c3 {[%emt 0:04:59]} Nc8 {[%emt 0:05:27]} 21. Nf4 {[%emt 0:00:45]} Nd6 {[%emt 0:02:49]} 22. Nd3 {[%emt 0:01:25]} a5 {[%emt 0:08:42]} 23. a4 {[%emt 0:04:08]} b6 {[%emt 0:03:48]} 24. Kc2 {[%emt 0:01:55]} Nc4 {[%emt 0:01:52]} 25. Rae1 {[%emt 0:02:59]} Rb8 {[%emt 0:11:06]} 26. Ra1 {[%emt 0:00:16]} e5 {[%emt 0:06:21]} 27. dxe5 {[%emt 0:04:12]} fxe5 {[%emt 0:04:44]} 28. b3 {[%emt 0:01:56]} e4 {[%emt 0:00:02]} 29. Nf4 {[%emt 0:01:20]} Ne5 {[%emt 0:02:54]} 30. Nxd5 {[%emt 0:00:21]} Nxg4 {[%emt 0:00:41]} 31. Rae1 {[%emt 0:00:23]} Nf6 {[%emt 0:01:37]} 32. Nxf6 Rxf6 {[%emt 0:00:01]} 33. Rxe4 {[%emt 0:02:21]} Rxf2+ {[%emt 0:00:05]} 34. Kd3 {[%emt 0:00:06]} Rb2 {[%emt 0:02:22]} 35. b4 {[%emt 0:00:26]} Rd8+ {[%emt 0:01:14]} 36. Kc4 {[%emt 0:02:25]} Rc8+ {[%emt 0:02:07]} 37. Kb5 {[%emt 0:01:43]} Ra2 {[%emt 0:03:23]} 38. Kxb6 {[%emt 0:01:11]} Rxa4 {[%emt 0:00:09]} 39. Kb5 {[%emt 0:00:33]} Ra3 {[%emt 0:00:50]} 40. bxa5 {[%emt 0:00:13]} Rb8+ {[%emt 0:00:05]} 41. Kc4 {[%emt 0:30:48]} Rxa5 {[%emt 0:30:25]} 42. Rf1+ {[%emt 0:00:34]} Kg8 {[%emt 0:00:03]} 43. Rg1 {[%emt 0:00:26]} 1/2-1/2

[Event "EYTCC Open U18 2018"]
[Site "Bad Blankeburg"]
[Date "2018.07.12"]
[Round "1"]
[White "Haring, Viktor"]
[Black "Blohberger, Felix"]
[Result "*"]
[ECO "D10"]
[WhiteElo "2289"]
[BlackElo "2420"]
[Annotator "NA"]
[PlyCount "59"]
[EventDate "2018.07.12"]
[EventType "swiss"]
[EventCountry "GER"]
[SourceTitle "playchess.com"]
[Source "ChessBase"]
[SourceQuality "1"]
[TimeControl "40/5400+30:1800+30"]

1. d4 {[%emt 0:00:00]} d5 {[%emt 0:00:16]} 2. c4 {[%emt 0:00:06]} c6 {[%emt 0:00:09]} 3. cxd5 {[%emt 0:00:30]} cxd5 {[%emt 0:00:08]} 4. Bf4 {[%emt 0:00:07]} Nc6 {[%emt 0:00:24]} 5. e3 {[%emt 0:00:20]} Nf6 {[%emt 0:00:11]} 6. Nc3 {[%emt 0:00:09]} e6 {[%emt 0:00:13]} 7. Bd3 {[%emt 0:00:25]} Be7 {[%emt 0:00:08]} 8. Rc1 {[%emt 0:00:30]} O-O {[%emt 0:00:34]} 9. h3 {[%emt 0:00:12]} Bd7 {[%emt 0:00:10]} 10. Nf3 {[%emt 0:00:07]} Qa5 {[%emt 0:00:23]} 11. O-O {[%emt 0:02:39]} Rfc8 {[%emt 0:00:09]} 12. Qe2 {[%emt 0:10:37]} Be8 {[%emt 0:00:38]} 13. a3 {[%emt 0:00:47]} Qd8 {[%emt 0:01:13]} 14. Rc2 {[%emt 0:10:42]} Na5 {[%emt 0:05:39]} 15. Ne5 {[%emt 0:08:22]} Nd7 {[%emt 0:01:58]} 16. Qg4 {[%emt 0:20:15]} f5 {[%emt 0:13:22]} 17. Qg3 {[%emt 0:07:51]} Bh4 {[%emt 0:02:45]} 18. Qf3 {[%emt 0:04:07]} Nxe5 {[%emt 0:00:13]} 19. Bxe5 {[%emt 0:00:01]} Nc4 {[%emt 0:00:21]} 20. Bxc4 {[%emt 0:00:24]} Rxc4 {[%emt 0:00:08]} 21. Rd2 {[%emt 0:04:35]} Rac8 {[%emt 0:03:32]} 22. Ne2 {[%emt 0:09:49]} Qa5 {[%emt 0:05:33]} 23. Rdd1 {[%emt 0:02:42]} Rc2 {[%emt 0:00:10]} 24. Nf4 {[%emt 0:00:39]} Qa6 {[%emt 0:07:40]} 25. g3 {[%emt 0:07:05]} Bg5 {[%emt 0:04:09]} 26. Rb1 {[%emt 0:01:16]} Bh6 {[%emt 0:06:03]} 27. Rfd1 {[%emt 0:03:50]} Bb5 {[%emt 0:02:33]} 28. b3 {[%emt 0:01:23]} Bxf4 {[%emt 0:03:14]} 29. Qxf4 {[%emt 0:00:02]} h6 {[%emt 0:00:43]} 30. Qh4 {[%emt 0:02:05]} *

[Event "EYTCC Open U18 2018"]
[Site "Bad Blankeburg"]
[Date "2018.07.13"]
[Round "2"]
[White "Kozak, Adam"]
[Black "Horvath, Dominik"]
[Result "1/2-1/2"]
[ECO "A06"]
[WhiteElo "2446"]
[BlackElo "2429"]
[Annotator "NA"]
[PlyCount "34"]
[EventDate "2018.07.12"]
[EventType "swiss"]
[EventCountry "GER"]
[SourceTitle "playchess.com"]
[Source "ChessBase"]
[SourceQuality "1"]
[TimeControl "40/5400+30:1800+30"]

1. Nf3 {[%emt 0:00:00]} d5 {[%emt 0:00:00]} 2. g3 {[%emt 0:00:00]} g6 {[%emt 0:00:00]} 3. Bg2 {[%emt 0:00:14]} Bg7 {[%emt 0:00:00]} 4. d4 {[%emt 0:00:07]} Nf6 {[%emt 0:00:27]} 5. O-O {[%emt 0:00:46]} O-O {[%emt 0:00:05]} 6. c4 {[%emt 0:00:05]} Nc6 {[%emt 0:00:27]} 7. Nbd2 {[%emt 0:13:30]} Be6 {[%emt 0:01:37]} 8. cxd5 {[%emt 0:07:51]} Bxd5 {[%emt 0:00:27]} 9. e3 {[%emt 0:03:23]} Ne4 {[%emt 0:02:04]} 10. Qc2 {[%emt 0:02:43]} f5 {[%emt 0:16:54]} 11. a3 {[%emt 0:02:54]} a5 $11 {[%emt 0:15:30]} 12. b3 {[%emt 0:11:28]} Nxd2 {[%emt 0:11:41]} 13. Bxd2 {[%emt 0:00:40]} Be4 {[%emt 0:00:08]} 14. Qc4+ {[%emt 0:01:09]} Bd5 {[%emt 0:00:10]} 15. Qc2 {[%emt 0:00:27]} Be4 {[%emt 0:00:04]} 16. Qc4+ {[%emt 0:03:56]} Bd5 {[%emt 0:00:11]} 17. Qc2 {[%emt 0:09:45]} Be4 {[%emt 0:00:04]} 1/2-1/2

[Event "EYTCC Open U18 2018"]
[Site "Bad Blankeburg"]
[Date "2018.07.13"]
[Round "2"]
[White "Blohberger, Felix"]
[Black "Szabo, Marton Mihaly"]
[Result "1/2-1/2"]
[ECO "B40"]
[WhiteElo "2420"]
[BlackElo "2371"]
[Annotator "NA"]
[PlyCount "54"]
[EventDate "2018.07.12"]
[EventType "swiss"]
[EventCountry "GER"]
[SourceTitle "playchess.com"]
[Source "ChessBase"]
[SourceQuality "1"]
[TimeControl "40/5400+30:1800+30"]

1. e4 {[%emt 0:00:00]} c5 {[%emt 0:00:46]} 2. Nf3 {[%emt 0:00:00]} e6 {[%emt 0:00:31]} 3. d4 {[%emt 0:00:27]} cxd4 {[%emt 0:00:15]} 4. Nxd4 {[%emt 0:00:09]} Bc5 {[%emt 0:02:31]} 5. Be3 {[%emt 0:01:26]} Qb6 {[%emt 0:01:10]} 6. Nb5 {[%emt 0:02:28]} Bxe3 {[%emt 0:00:17]} 7. fxe3 {[%emt 0:00:07]} Nc6 {[%emt 0:00:22]} 8. N1c3 {[%emt 0:07:17]} Qxe3+ {[%emt 0:00:46]} 9. Be2 {[%emt 0:00:36]} Kf8 {[%emt 0:00:10]} 10. Qd6+ {[%emt 0:30:23] LiveBook: 3 Games} Nge7 {[%emt 0:01:37]} 11. Rf1 {[%emt 0:00:51]} h5 {[%emt 0:06:16]} 12. Rd1 $11 {[%emt 0:10:26]} Rh6 {[%emt 0:08:34]} 13. Qc7 {[%emt 0:12:29]} Qg5 {[%emt 0:27:02]} 14. Nd6 {[%emt 0:05:41]} Rf6 {[%emt 0:01:19]} 15. Rxf6 {[%emt 0:01:52]} gxf6 {[%emt 0:04:11]} 16. Bb5 {[%emt 0:03:17]} Qh4+ {[%emt 0:06:18]} 17. g3 {[%emt 0:04:16]} Qxh2 {[%emt 0:02:04]} 18. Ne2 {[%emt 0:02:43]} h4 {[%emt 0:22:38]} 19. Bxc6 {[%emt 0:04:44]} Nxc6 {[%emt 0:00:47]} 20. Nxc8 {[%emt 0:02:59]} Ne5 {[%emt 0:00:48]} 21. Qc5+ {[%emt 0:04:17]} Kg7 {[%emt 0:00:15]} 22. gxh4 {[%emt 0:00:57]} b6 {[%emt 0:02:24]} 23. Qc3 {[%emt 0:00:47]} Qxh4+ {[%emt 0:02:11]} 24. Kd2 {[%emt 0:02:05]} Qg5+ {[%emt 0:00:42]} 25. Ke1 {[%emt 0:00:13]} Qh4+ {[%emt 0:00:44]} 26. Kd2 {[%emt 0:00:05]} Qh6+ {[%emt 0:00:32]} 27. Ke1 {[%emt 0:00:05]} Qh4+ {[%emt 0:01:50]} 1/2-1/2

[Event "EYTCC Open U18 2018"]
[Site "Bad Blankeburg"]
[Date "2018.07.13"]
[Round "2"]
[White "Janik, Igor"]
[Black "Engel, Luis"]
[Result "1-0"]
[ECO "B51"]
[WhiteElo "2420"]
[BlackElo "2459"]
[Annotator "ChessBase"]
[PlyCount "63"]
[EventDate "2018.07.12"]
[EventType "swiss"]
[EventCountry "GER"]
[SourceTitle "playchess.com"]
[Source "ChessBase"]
[SourceQuality "1"]
[TimeControl "40/5400+30:1800+30"]

1. e4 {[%emt 0:00:00]} c5 {[%emt 0:00:00]} 2. Nf3 {[%emt 0:00:00]} d6 {[%emt 0:00:00]} 3. Bb5+ {[%emt 0:00:00]} Nd7 {[%emt 0:00:00]} 4. O-O {[%emt 0:00:00]} a6 {[%emt 0:00:00]} 5. Bd3 {[%emt 0:00:00]} Ngf6 {[%emt 0:00:00]} 6. Re1 {[%emt 0:00:00]} e6 {[%emt 0:00:03]} 7. a4 {[%emt 0:00:00]} b6 {[%emt 0:03:04]} 8. c3 {[%emt 0:00:07]} Bb7 {[%emt 0:00:20]} 9. Na3 {[%emt 0:00:08]} Be7 {[%emt 0:01:12]} 10. Bc2 {[%emt 0:00:11]} Qc7 {[%emt 0:03:05]} 11. d3 {[%emt 0:02:13]} O-O {[%emt 0:01:18]} 12. Bf4 {[%emt 0:00:51]} Nh5 {[%emt 0:08:21]} 13. Be3 {[%emt 0:01:05]} d5 {[%emt 0:02:34]} 14. e5 {[%emt 0:04:15]} g6 {[%emt 0:02:22]} 15. d4 {[%emt 0:02:58]} Rac8 {[%emt 0:05:14]} 16. Rc1 {[%emt 0:04:34]} Nb8 {[%emt 0:02:32]} 17. Ng5 {[%emt 0:10:27]} Nc6 {[%emt 0:03:05]} 18. Nxh7 {[%emt 0:01:56]} Rfd8 {[%emt 0:03:58]} 19. Ng5 {[%emt 0:10:26]} cxd4 {[%emt 0:05:44]} 20. cxd4 {[%emt 0:02:38]} Bb4 {[%emt 0:11:54]} 21. Rf1 {[%emt 0:01:58]} Qe7 {[%emt 0:04:42]} 22. Qg4 {[%emt 0:04:27]} Nxe5 {[%emt 0:04:42]} 23. dxe5 {[%emt 0:00:13]} d4 {[%emt 0:00:05]} 24. Nxf7 {[%emt 0:03:05]} Qxf7 {[%emt 0:02:05]} 25. Bxg6 {[%emt 0:00:20]} Qg7 {[%emt 0:00:08]} 26. Rxc8 {[%emt 0:02:57]} Rxc8 {[%emt 0:00:22]} 27. Bc1 {[%emt 0:01:40]} d3 {[%emt 0:02:35]} 28. Be3 {[%emt 0:00:30]} Bd5 {[%emt 0:04:57]} 29. Bxh5 {[%emt 0:00:50]} d2 {[%emt 0:00:26]} 30. Qxg7+ {[%emt 0:05:08]} Kxg7 {[%emt 0:00:06]} 31. Be2 {[%emt 0:00:29]} Bb3 {[%emt 0:00:54]} 32. Bd1 {[%emt 0:02:01]} 1-0

[Event "EYTCC Open U18 2018"]
[Site "Bad Blankeburg"]
[Date "2018.07.13"]
[Round "2"]
[White "Teclaf, Pawel"]
[Black "Pajeken, Jakob Leon"]
[Result "1-0"]
[ECO "A06"]
[WhiteElo "2399"]
[BlackElo "2273"]
[Annotator "NA"]
[PlyCount "99"]
[EventDate "2018.07.12"]
[EventType "swiss"]
[EventCountry "GER"]
[SourceTitle "playchess.com"]
[Source "ChessBase"]
[SourceQuality "1"]
[TimeControl "40/5400+30:1800+30"]

1. Nf3 {[%emt 0:00:00]} d5 {[%emt 0:00:00]} 2. b3 {[%emt 0:00:00]} Bg4 {[%emt 0:00:06]} 3. Bb2 {[%emt 0:01:10]} Nd7 {[%emt 0:00:37]} 4. g3 {[%emt 0:00:04]} Ngf6 {[%emt 0:01:09]} 5. Bg2 {[%emt 0:00:38]} e6 {[%emt 0:01:10]} 6. O-O {[%emt 0:01:03]} Bd6 {[%emt 0:01:29]} 7. c4 {[%emt 0:00:04]} O-O {[%emt 0:02:25]} 8. d4 {[%emt 0:00:53]} c6 {[%emt 0:04:20]} 9. Ne5 {[%emt 0:01:34]} Bf5 {[%emt 0:02:34]} 10. Nd2 {[%emt 0:01:40]} a5 {[%emt 0:05:06]} 11. a3 {[%emt 0:01:11]} h6 {[%emt 0:04:02]} 12. h3 {[%emt 0:12:57]} Qc7 {[%emt 0:08:27]} 13. f4 $11 {[%emt 0:06:03]} Be4 {[%emt 0:06:38]} 14. Nxe4 {[%emt 0:35:01]} Nxe4 {[%emt 0:01:16]} 15. Bxe4 {[%emt 0:01:17]} dxe4 {[%emt 0:00:35]} 16. Qc2 {[%emt 0:00:10]} f5 {[%emt 0:02:02]} 17. c5 {[%emt 0:02:09]} Bxe5 {[%emt 0:02:00]} 18. dxe5 {[%emt 0:00:01]} b6 {[%emt 0:00:57]} 19. Qc4 {[%emt 0:06:35]} Rfe8 {[%emt 0:02:22]} 20. Rad1 {[%emt 0:06:23]} Nxc5 {[%emt 0:04:53]} 21. Rd6 {[%emt 0:00:31]} Kh7 {[%emt 0:09:27]} 22. Bd4 {[%emt 0:01:03]} Qe7 {[%emt 0:03:39]} 23. Bxc5 {[%emt 0:03:10]} bxc5 {[%emt 0:00:06]} 24. Rfd1 {[%emt 0:00:06]} Ra7 {[%emt 0:03:43]} 25. Qxc5 {[%emt 0:00:53]} Rb8 {[%emt 0:00:42]} 26. Qc4 {[%emt 0:05:27]} Rab7 {[%emt 0:00:40]} 27. Rb1 {[%emt 0:00:36]} Rb5 {[%emt 0:01:05]} 28. Kg2 {[%emt 0:03:58]} c5 {[%emt 0:02:28]} 29. Rxe6 {[%emt 0:03:25]} Qb7 {[%emt 0:00:09]} 30. Rd6 {[%emt 0:02:05]} e3+ {[%emt 0:06:10]} 31. Qd5 {[%emt 0:00:01]} c4 {[%emt 0:00:08]} 32. Qxb7 {[%emt 0:00:02]} R8xb7 {[%emt 0:00:14]} 33. b4 {[%emt 0:00:04]} axb4 {[%emt 0:00:42]} 34. Rxb4 {[%emt 0:01:27]} Rxb4 {[%emt 0:02:03]} 35. axb4 {[%emt 0:00:02]} Rxb4 {[%emt 0:00:27]} 36. Rc6 {[%emt 0:00:39]} g5 {[%emt 0:00:36]} 37. Kf3 {[%emt 0:00:32]} Kg7 {[%emt 0:00:41]} 38. Rc7+ {[%emt 0:02:22]} Kg6 {[%emt 0:00:28]} 39. Rc6+ {[%emt 0:00:01]} Kg7 {[%emt 0:00:17]} 40. Kxe3 {[%emt 0:02:11]} Rb3+ {[%emt 0:00:08]} 41. Kf2 {[%emt 0:30:33]} gxf4 {[%emt 0:30:06]} 42. gxf4 {[%emt 0:00:02]} Rxh3 {[%emt 0:00:14]} 43. Rxc4 {[%emt 0:00:01]} Kf7 {[%emt 0:00:44]} 44. Rc6 {[%emt 0:00:27]} Ke7 {[%emt 0:03:42]} 45. Rf6 {[%emt 0:00:03]} Rh2+ {[%emt 0:00:20]} 46. Ke3 {[%emt 0:00:17]} Rh5 {[%emt 0:00:31]} 47. Kd4 {[%emt 0:00:08]} Rh2 {[%emt 0:00:09]} 48. Rxf5 {[%emt 0:00:10]} Rxe2 {[%emt 0:00:14]} 49. Rh5 {[%emt 0:00:03]} Rd2+ {[%emt 0:00:18]} 50. Ke4 {[%emt 0:00:02]} 1-0

[Event "EYTCC Open U18 2018"]
[Site "Bad Blankeburg"]
[Date "2018.07.13"]
[Round "2"]
[White "Gorshtein, Ido"]
[Black "Vogel, Roven"]
[Result "0-1"]
[ECO "B10"]
[WhiteElo "2382"]
[BlackElo "2467"]
[Annotator "RC"]
[PlyCount "56"]
[EventDate "2018.07.12"]
[EventType "swiss"]
[EventCountry "GER"]
[SourceTitle "playchess.com"]
[Source "ChessBase"]
[SourceQuality "1"]
[TimeControl "40/5400+30:1800+30"]

1. e4 {[%emt 0:00:00]} c6 {[%emt 0:00:00]} 2. Nf3 {[%emt 0:00:00]} d5 {[%emt 0:00:00]} 3. exd5 {[%emt 0:00:00]} cxd5 {[%emt 0:00:05]} 4. d4 {[%emt 0:00:00]} Nc6 {[%emt 0:00:47]} 5. Ne5 {[%emt 0:00:00]} Nf6 {[%emt 0:01:43]} 6. Bb5 {[%emt 0:00:01]} Bd7 {[%emt 0:00:25]} 7. Nxd7 {[%emt 0:00:03]} Qxd7 {[%emt 0:00:17]} 8. c3 {[%emt 0:00:35]} e6 {[%emt 0:00:43]} 9. O-O {[%emt 0:00:40]} Bd6 {[%emt 0:03:55]} 10. Nd2 {[%emt 0:08:41]} O-O {[%emt 0:01:20]} 11. Re1 {[%emt 0:25:23]} Qc7 {[%emt 0:01:21]} 12. Nf1 {[%emt 0:00:16]} a6 {[%emt 0:04:43]} 13. Bd3 {[%emt 0:00:58]} Bf4 {[%emt 0:04:04]} 14. Ng3 {[%emt 0:02:26]} Bxc1 {[%emt 0:03:26]} 15. Rxc1 {[%emt 0:00:03]} g6 {[%emt 0:00:11]} 16. Qf3 {[%emt 0:05:49]} Kg7 17. Ne2 Qb6 {[%emt 0:16:33]} 18. Rb1 {[%emt 0:06:51]} Rae8 {[%emt 0:03:49]} 19. Nf4 {[%emt 0:05:19]} e5 {[%emt 0:03:10]} 20. dxe5 {[%emt 0:05:05]} Rxe5 {[%emt 0:03:19]} 21. Rxe5 {[%emt 0:12:27]} Nxe5 {[%emt 0:02:15]} 22. Qg3 {[%emt 0:00:28]} Re8 {[%emt 0:00:53]} 23. Bc2 {[%emt 0:11:01]} Nc4 {[%emt 0:05:32]} 24. h3 {[%emt 0:03:51]} Nd2 {[%emt 0:02:27]} 25. Rd1 {[%emt 0:00:33]} Qxb2 {[%emt 0:00:10]} 26. Qd3 {[%emt 0:00:32]} Nde4 {[%emt 0:01:24]} 27. Rb1 {[%emt 0:00:42]} Qxa2 {[%emt 0:01:32]} 28. Rxb7 {[%emt 0:01:54]} Nc5 {[%emt 0:02:03]} 0-1

[Event "EYTCC Open U18 2018"]
[Site "Bad Blankeburg"]
[Date "2018.07.13"]
[Round "2"]
[White "Parkhov, Yair"]
[Black "Martin, Julian"]
[Result "1-0"]
[ECO "D02"]
[WhiteElo "2364"]
[BlackElo "2415"]
[Annotator "NA RC"]
[PlyCount "47"]
[EventDate "2018.07.12"]
[EventType "swiss"]
[EventCountry "GER"]
[SourceTitle "playchess.com"]
[Source "ChessBase"]
[SourceQuality "1"]
[TimeControl "40/5400+30:1800+30"]

1. Nf3 {[%emt 0:00:00]} d5 {[%emt 0:00:10]} 2. d4 {[%emt 0:00:00]} Nf6 {[%emt 0:00:39]} 3. Bf4 {[%emt 0:00:13]} Nbd7 {[%emt 0:01:29]} 4. c4 {[%emt 0:14:37]} c6 {[%emt 0:11:13]} 5. cxd5 {[%emt 0:04:37]} Nxd5 {[%emt 0:00:38]} 6. Bd2 {[%emt 0:04:42]} N7f6 {[%emt 0:17:59]} (6... e5 $5) 7. Qc2 {[%emt 0:00:51]} a5 {[%emt 0:06:26]} 8. Nc3 $14 {[%emt 0:10:00]} Bg4 {[%emt 0:05:21]} 9. e4 {[%emt 0:14:09]} Nb4 {[%emt 0:02:51]} 10. Qb3 {[%emt 0:02:17]} Be6 {[%emt 0:26:29]} 11. Qd1 {[%emt 0:05:31]} g6 {[%emt 0:02:07]} 12. a3 {[%emt 0:06:01]} Na6 {[%emt 0:00:35]} 13. h3 {[%emt 0:05:20]} Bg7 {[%emt 0:04:33]} 14. Be3 {[%emt 0:00:33]} O-O {[%emt 0:00:44]} 15. Qd2 {[%emt 0:01:39]} b5 {[%emt 0:02:21]} 16. Bd3 {[%emt 0:01:44]} b4 {[%emt 0:02:31]} 17. Ne2 {[%emt 0:07:01]} Nd7 {[%emt 0:07:03]} 18. Rc1 {[%emt 0:02:47]} Ndb8 {[%emt 0:02:02]} 19. Bh6 {[%emt 0:01:03]} Qb6 {[%emt 0:01:31]} 20. h4 {[%emt 0:02:23]} c5 {[%emt 0:01:25]} 21. h5 {[%emt 0:01:21]} Bg4 {[%emt 0:00:42]} 22. Bxg7 {[%emt 0:00:13]} Kxg7 {[%emt 0:00:15]} 23. hxg6 {[%emt 0:00:17]} Qxg6 {[%emt 0:00:02]} 24. Ne5 {[%emt 0:00:09]} 1-0

[Event "EYTCC Open U18 2018"]
[Site "Bad Blankeburg"]
[Date "2018.07.13"]
[Round "2"]
[White "Morgunov, Daniel"]
[Black "Borhy, Marcell"]
[Result "1/2-1/2"]
[ECO "B52"]
[WhiteElo "2346"]
[BlackElo "2234"]
[Annotator "NA"]
[PlyCount "67"]
[EventDate "2018.07.12"]
[EventType "swiss"]
[EventCountry "GER"]
[SourceTitle "playchess.com"]
[Source "ChessBase"]
[SourceQuality "1"]
[TimeControl "40/5400+30:1800+30"]

1. e4 {[%emt 0:00:00]} c5 {[%emt 0:00:00]} 2. Nf3 {[%emt 0:00:00]} d6 {[%emt 0:00:11]} 3. Bb5+ {[%emt 0:00:00]} Bd7 {[%emt 0:00:13]} 4. c4 {[%emt 0:00:01]} Nf6 {[%emt 0:01:04]} 5. Nc3 {[%emt 0:00:05]} g6 {[%emt 0:05:02]} 6. d4 {[%emt 0:00:28]} cxd4 {[%emt 0:01:54]} 7. Nxd4 {[%emt 0:00:10]} Bg7 {[%emt 0:03:07]} 8. O-O {[%emt 0:00:32]} O-O {[%emt 0:03:12]} 9. h3 {[%emt 0:04:52]} Nc6 {[%emt 0:06:15]} 10. Bxc6 {[%emt 0:02:02]} Bxc6 {[%emt 0:01:34]} 11. Qd3 {[%emt 0:05:48]} Nd7 {[%emt 0:09:30]} 12. Be3 {[%emt 0:01:54]} Rc8 {[%emt 0:03:57]} 13. Rac1 {[%emt 0:04:07]} b6 {[%emt 0:10:26]} 14. b3 $14 {[%emt 0:09:23]} Nc5 {[%emt 0:03:11]} 15. Qb1 {[%emt 0:00:39]} Qd7 {[%emt 0:00:26]} 16. Rfd1 {[%emt 0:01:55]} Qb7 {[%emt 0:01:30]} 17. f3 {[%emt 0:05:33]} Bd7 {[%emt 0:07:46]} 18. Nd5 {[%emt 0:03:35]} Rfe8 {[%emt 0:00:24]} 19. b4 {[%emt 0:18:29]} Ne6 {[%emt 0:02:12]} 20. Nxe6 {[%emt 0:08:45]} Bxe6 {[%emt 0:00:48]} 21. Qb3 {[%emt 0:00:30]} Bxd5 {[%emt 0:07:34]} 22. Rxd5 {[%emt 0:03:36]} Rc6 {[%emt 0:04:40]} 23. a4 {[%emt 0:05:30]} Rec8 {[%emt 0:01:57]} 24. b5 {[%emt 0:07:24]} R6c7 {[%emt 0:00:14]} 25. a5 {[%emt 0:01:56]} Qb8 {[%emt 0:08:00]} 26. Qd3 {[%emt 0:03:11]} h5 {[%emt 0:07:34]} 27. Qe2 {[%emt 0:07:43]} bxa5 {[%emt 0:03:29]} 28. Qa2 {[%emt 0:00:28]} Qb7 {[%emt 0:04:43]} 29. Qxa5 {[%emt 0:01:14]} Rxc4 {[%emt 0:02:16]} 30. Rxc4 {[%emt 0:00:06]} Rxc4 {[%emt 0:00:05]} 31. Qxa7 {[%emt 0:02:40]} Qxa7 {[%emt 0:00:18]} 32. Bxa7 {[%emt 0:00:05]} Rc1+ {[%emt 0:00:03]} 33. Kf2 {[%emt 0:00:31]} Rb1 {[%emt 0:00:01]} 34. Be3 {[%emt 0:01:06]} 1/2-1/2